Workbook

Sheet SUMMARY
A1: ='C1.2'!A1 -> New Mashifane Park: Installation of Civil Engineering Services: Roads and Stormwater Network
A3: ='C1.2'!A3 -> Contract No: Contract "A1"
A5: Section | B5: Description | C5: Amount (R)
A6: C1.2 | B6: GENERAL REQUIREMENTS AND PROVISIONS | C6: ='C1.2'!F93 -> 1,240,000.00
A8: C1.3 | B8: CONTRACTOR’S SITE ESTABLISHMENT AND GENERAL OBLIGATIONS | C8: ='C1.3 '!F54 -> 0
A10: C1.4 | B10: FACILITIES FOR THE ENGINEER | C10: ='C1.4'!F119 -> 0
A12: C1.5 | B12: ACCOMMODATION OF TRAFFIC | C12: ='C1.5'!F91 -> 0
A14: C1.6 | B14: CLEARING AND GRUBBING | C14: ='C1.6'!F38 -> 0
A16: C1.7 | B16: LOADING AND HAULING | C16: ='C1.7'!F37 -> 0
A18: C3.1 | B18: ='C3.1'!B6 -> DRAINS | C18: ='C3.1'!F111 -> 0
A20: C3.2 | B20: ='C3.2'!B6 -> CULVERTS | C20: ='C3.2'!F150 -> 0
A22: C3.3 | B22: CONCRETE KERBING AND CHANNELLING | C22: ='C3.3'!F73 -> 0
A24: C4.1 | B24: BORROW MATERIALS | C24: ='C4.1'!F45 -> 0
A26: C4.2 | B26: CUT MATERIALS | C26: ='C4.2'!F51 -> 0
A28: C4.4 | B28: COMMERCIAL MATERIALS | C28: ='C4.4'!F50 -> 0
A30: C5.1 | B30: ROADBED | C30: ='C.5.1'!F61 -> 0
A32: C5.2 | B32: ='C5.2'!B6 -> FILL LAYERS | C32: ='C5.2'!F46 -> 0
A34: C5.3 | B34: ROAD PAVEMENT LAYERS | C34: ='C5.3'!F43 -> 0
A36: C5.4 | B36: STABILISATION | C36: ='C5.4'!F49 -> 0
A38: C6.2 | B38: ='C6.2'!B6 -> SEGMENTAL BLOCK PAVING LAYERS | C38: ='C6.2'!F52 -> 0
A40: C8.1 | B40: PRIME COAT | C40: ='C8.1'!F47 -> 0
A42: C9.1 | B42: ASPHALT LAYERS | C42: ='C.9.1'!F42 -> 0
A44: C11.6 | B44: ROAD SIGNS | C44: ='C.11.6'!F48 -> 0
A46: C11.7 | B46: ROAD MARKINGS AND ROAD STUDS | C46: ='C11.7'!F52 -> 0
A48: C11.9 | B48: FINISHING ROAD AND RESERVE AND TREATING OLD ROADS | C48: ='C11.9'!F48 -> 0
A50: G10 | B50: GUIDELINES FOR SUBCONTRACTING AND LABOUR ENHANCEMENT | C50: =G.10!F48 -> 0
B52: SUB-TOTAL
B56: 10% CONTINGENCIES
B58: SUBTOTAL | C58: =SUM(C52:C56) -> 0
B60: Add 15% VAT | C60: =C58*15% -> 0
A62: Total Carried Forward To Summary Of Schedules | C62: =C58+C60 -> 0

Sheet C1.2
A1: New Mashifane Park: Installation of Civil Engineering Services: Roads and Stormwater Network
A3: Contract No: Contract "A1"
F4: C1.2 GENERAL REQUIREMENTS AND PROVISIONS
A5: Item | B5: Description | C5: Unit | D5: Quantity | E5: Rate | F5: Amount (R)
A6: C1.2 | B6: GENERAL REQUIREMENTS AND PROVISIONS
A8: C1.2.1.1 | B8: Monitoring compliance with and reporting on the EMP | C8: month | D8: 12.00 | E8: 0 | F8: =D8*E8 -> 0
A10: C1.2.1.2 | B10: Dedicated environmetal officer | C10: month | D10: 12.00 | E10: 0 | F10: =D10*E10 -> 0
A12: C1.2.4 | B12: Stakeholder liaison | C12: month | D12: 12.00 | F12: =D12*E12 -> 0
A14: C1.2.4.1 | B14: Social Facilitation | C14: Lump | D14: 1.00 | E14: R750,000.00 | F14: =E14 -> R750,000.00
A16: C1.2.4.2 | B16: Occupational Health and Safety | C16: Lump | D16: 1.00 | E16: R450,000.00 | F16: =E16 -> R450,000.00
A18: C1.2.5.1 | B18: Health and safety plan | C18: Lump sum | D18: 1 | E18: 40000 | F18: 40000
A20: C1.2.5.2 | B20: Implementation of health and safety plan | C20: month | D20: 12.00 | E20: 0 | F20: 0
A21: C1.2.5 | B21: Safety:
A23: C1.2.5.1 | B23: Health and safety plan | C23: Lump sum | D23: 1.00 | E23: 0 | F23: =D23*E23 -> 0
A25: C1.2.5.2 | B25: Implementation of health and safety plan | C25: month | D25: 12.00 | E25: 0 | F25: =D25*E25 -> 0
A27: C1.2.8 | B27: Dayworks:
A29: C1.2.8.1 | B29: Personnel:
B31: (a) Unskilled labourer | C31: h | D31: 50.00 | E31: 0 | F31: Rate Only
B33: (b) Semi-skilled labourer | C33: h | D33: 50.00 | E33: 0 | F33: Rate Only
B35: (c) Skilled labourer | C35: h | D35: 50.00 | E35: 0 | F35: Rate Only
B37: (d) Gang leader | C37: h | D37: 50.00 | E37: 0 | F37: Rate Only
B39: (e) Foreman | C39: h | D39: 50.00 | E39: 0 | F39: Rate Only
B41: (f) Skilled Artisan | C41: h | D41: 50.00 | E41: 0 | F41: Rate Only
A43: C1.2.8.2 | B43: Construction equipment (specify size and / or model number):
B45: (a) Motor grader | C45: h | D45: 50.00 | E45: 0 | F45: Rate Only
B47: (b) Vibratory roller | C47: h | D47: 50.00 | E47: 0 | F47: Rate Only
B49: (c) Pneumatic roller | C49: h | D49: 50.00 | E49: 0 | F49: Rate Only
B51: (d) Front end loader | C51: h | D51: 50.00 | E51: 0 | F51: Rate Only
B53: (e) Tractor loader backhoe | C53: h | D53: 50.00 | E53: 0 | F53: Rate Only
B55: (f) Excavator | C55: h | D55: 50.00 | E55: 0 | F55: Rate Only
B57: (g) Compressor | C57: h | D57: 50.00 | E57: 0 | F57: Rate Only
A59: Total Carried Forward | F59: =SUM(F6:F58) -> R1,240,000.00
A61: New Mashifane Park: Installation of Civil Engineering Services: Roads and Stormwater Network
A63: Contract No:
F64: C1.2 GENERAL REQUIREMENTS AND PROVISIONS
A65: Item | B65: Description | C65: Unit | D65: Quantity | E65: Rate | F65: Amount (R)
A66: Total brought forward | F66: =F59 -> R1,240,000.00
B68: (h) Other equipment (specify) | C68: h | D68: 50.00 | E68: 0 | F68: Rate only
A70: C1.2.8.3 | B70: Vehicles (specify size):
B72: (a) Light delivery vehicle | C72: km | D72: 2,500.00 | E72: 0 | F72: Rate Only
B74: (b) Flatbed truck | C74: km | D74: 2,500.00 | E74: 0 | F74: Rate Only
A77: BC1.2.10 | B77: Protection, Removal, Realignment and Replacement of services
B79: (a) Utility Services | C79: prov sum | D79: 1.00 | E79: 0 | F79: =D79*E79 -> 0
B81: (b) Contractors Handling cost and profit in respect of sub-item BC1.2.10(a) | C81: % | D81: =F79 -> 0 | F81: =D81*E81 -> 0
A93: Total Carried Forward To Summary | F93: =SUM(F66:F92) -> R1,240,000.00
C94: - 2 -

Sheet C1.3
A1: ='C1.2'!A1 -> New Mashifane Park: Installation of Civil Engineering Services: Roads and Stormwater Network
A3: ='C1.2'!A3 -> Contract No: Contract "A1"
F4: C1.3 CONTRACTOR’S SITE ESTABLISHMENT AND GENERAL OBLIGATIONS
A5: Item | B5: Description | C5: Unit | D5: Quantity | E5: Rate | F5: Amount (R)
A6: C1.3 | B6: CONTRACTOR’S SITE ESTABLISHMENT AND GENERAL OBLIGATIONS
A8: C1.3.1 | B8: The Contractor's general obligations:
A10: C1.3.1.1 | B10: Fixed obligations | C10: Lump sum | D10: 1.00 | E10: 0 | F10: =D10*E10 -> 0 | I10: =F10/2 -> 0
A12: C1.3.1.2 | B12: Value related obligations | C12: Lump sum | D12: 1.00 | E12: 0 | F12: =D12*E12 -> 0
A14: C1.3.1.3 | B14: Time-related obligations | C14: month | D14: 12.00 | E14: 0 | F14: =D14*E14 -> 0
A16: C1.3.2 | B16: Contract sign boards | C16: m² | D16: 36.00 | E16: 0 | F16: =D16*E16 -> 0
A18: C1.3.3 | B18: (a)OHS Consultant to be Appointed by Client | C18: Prov. Sum | D18: 1.00 | E18: 0 | F18: =SUM(E18) -> 0
B20: (b) Contractors Handling cost and profit in respect of sub-item BC1.2.10(a) | C20: % | D20: =SUM(F18) -> 0 | E20: 0% | F20: =D20*E20 -> 0.00
B22: ( c )Provision for proper PPE's to Local | C22: No | D22: 100 | E22: 0 | F22: =SUM(D22*E22) -> 0
B23: Workers
B25: (d)Provision for Compiling of Safety File | C25: No | D25: 1 | E25: 0 | F25: =SUM(D25*E25) -> 0
B27: (e ) Provision for proper PPE's for Visitors | C27: No | D27: 20 | E27: 0 | F27: =SUM(D27*E27) -> 0
B29: ( f )Provision for Medical | C29: No | D29: 1 | E29: 0 | F29: =SUM(D29*E29) -> 0
B30: Surveillance(entry and exit)
B31: (g) Provision for Site Safety Signage | C31: No | D31: 1 | E31: 0 | F31: =SUM(D31*E31) -> 0
B33: (h) Provision for Fire Fighting Equipment | C33: No | D33: 10 | E33: 0 | F33: =SUM(D33*E33) -> 0
B35: ( I ) Provision for First Aid Kit(supply | C35: No | D35: 2 | E35: 0 | F35: =SUM(D35*E35) -> 0
B36: &maintenance)
B38: ( j ) Provision for HCS Spill Kits(supply | C38: No | D38: 1 | E38: 0 | F38: =SUM(D38*E38) -> 0
B39: &maintain)
B42: ( k ) Provision for Safety Barricades | C42: No | D42: 15 | E42: 0 | F42: =SUM(D42*E42) -> 0
B44: ( l ) Provision for H&S Personnel(e.g | C44: No | D44: 12 | E44: 0 | F44: =SUM(D44*E44) -> 0
B45: CHSO.FA etc.)
A54: Total Carried Forward To Summary | F54: =SUM(F6:F53) -> 0 | M54: R16,850,088.06
C55: - 3 -

Sheet C1.4
A1: ='C1.3 '!A1 -> New Mashifane Park: Installation of Civil Engineering Services: Roads and Stormwater Network
A3: ='C1.3 '!A3 -> Contract No: Contract "A1"
A4: C1.4 FACILITIES FOR THE ENGINEER
A5: ITEM | B5: DESCRIPTION | C5: UNIT | D5: QTY | E5: RATE | F5: AMOUNT
A6: C1.4.1 | B6: Office and laboratory accommodation:
B8: The provision of accommodation as
B9: specified, including roof, external and
B10: internal walls, windows complete with
B11: glazing, doors with locks and fittings,
B12: burglar proofing, painting, floors,
B13: fencing, the provision of a 220/250
B14: volt electrical installation with
B15: wiring, switchboards, etc, water and
B16: sewerage installation, and stores,
B17: complete, in accordance with the
B18: drawings and specifications, except for
B19: items scheduled elsewhere:
A21: C1.4.1.1 | B21: Offices and conference room | C21: m² | D21: 40.00 | E21: 0 | F21: =D21*E21 -> 0
A23: C1.4.1.2 | B23: Laboratories | C23: m² | D23: 40.00 | E23: Rate Only | F23: Rate Only
A25: C1.4.1.5 | B25: Store rooms inside the laboratory | C25: m² | D25: 15.00 | E25: Rate Only | F25: Rate Only
A27: C1.4.1.6 | B27: Car ports | C27: No. | D27: 9.00 | E27: 0 | F27: =D27*E27 -> 0
A29: C1.4.1.7 | B29: Ablution units | C29: m² | D29: 15.00 | E29: 0 | F29: =D29*E29 -> 0
A31: C1.4.1.9 | B31: Cooking unit, complete with stove, | C31: No. | D31: 1.00 | E31: Rate Only | F31: Rate Only
B32: basin, concrete working table,
B33: shelving, sink
A35: C1.4.2.8 | B35: Notice boards as specified | C35: m² | D35: 3.00 | E35: 0 | F35: =D35*E35 -> 0
A37: C1.4.3 | B37: Office and laboratory furniture, fittings, installations and equipment
A39: C1.4.3.1 | B39: Office swivel chair | C39: No. | D39: 9.00 | E39: 0 | F39: =D39*E39 -> 0
A41: C1.4.3.2 | B41: Chairs | C41: No. | D41: 20.00 | E41: 0 | F41: =D41*E41 -> 0
A43: C1.4.3.3 | B43: Draughtsman's stools | C43: No. | D43: 1.00 | E43: 0 | F43: Rate only
A45: C1.4.3.4 | B45: High chairs for Laboratory | C45: No. | D45: 3.00 | E45: 0 | F45: Rate only
A47: C1.4.3.5 | B47: Desks, complete with drawers and | C47: No. | D47: 3.00 | E47: 0 | F47: =D47*E47 -> 0
B48: locks
A50: C1.4.3.7 | B50: Drawing tables | C50: No. | D50: 3.00 | E50: 0 | F50: =D50*E50 -> 0
A52: C1.4.3.8 | B52: Conference tables | C52: No. | D52: 1.00 | E52: 0 | F52: =D52*E52 -> 0
A54: C1.4.3.11 | B54: General purpose steel cabinet with shelves | C54: No. | D54: 6.00 | E54: 0 | F54: =D54*E54 -> 0
A56: C1.4.3.13 | B56: 220/250 volt power points | C56: No. | D56: 1.00 | E56: 0 | F56: =D56*E56 -> 0
F62: =SUM(F6:F61) -> 0
A63: =A1 -> New Mashifane Park: Installation of Civil Engineering Services: Roads and Stormwater Network
A65: =A3 -> Contract No: Contract "A1"
E66: =A4 -> C1.4 FACILITIES FOR THE ENGINEER
A67: ITEM | B67: DESCRIPTION | C67: UNIT | D67: QTY | E67: RATE | F67: AMOUNT
B68: BROUGHT FORWARD | F68: =F62 -> 0
A70: C1.4.3.17 | B70: Double 55 watt fluorescent light | C70: No. | D70: 5.00 | E70: 0 | F70: =D70*E70 -> 0
B71: fittings complete with ballast and
B72: tubes
A74: C1.4.3.16 | B74: Single incandescent light fittings | C74: No. | D74: 1.00 | E74: 0 | F74: =D74*E74 -> 0
B75: complete with 100 watt globes
A77: C1.4.3.19 | B77: Wash-hand basins coplte with taps and drains | C77: No. | D77: 2.00 | E77: 0 | F77: =D77*E77 -> 0
A79: C1.4.3.20 | B79: Laboratory basins complete with swan-neck taps | C79: No. | D79: 1.00 | E79: 0 | F79: Rate Only
B80: and drain
A82: C1.4.3.22 | B82: Fume cupboards complete according to the | C82: No. | D82: 1.00 | E82: 0 | F82: =D82*E82 -> 0
B83: drawings
A85: C1.4.3.24 | B85: Air-conditioning units with, 2,2 | C85: No. | D85: 3.00 | E85: 0 | F85: =D85*E85 -> 0
B86: kW minimum capacity, mounted
B87: and with own power connection
A89: C1.4.3.26 | B89: Curing chamber for UCS specimens, complete
B90: with water connection, including the provision of | C90: No. | D90: 1.00 | E90: 0 | F90: Rate Only
B91: brick partitions, plaster, paint and shelving, all
B92: complete according to the drawings
A94: C1.4.3.30 | B94: A4 colour printer, copier, scanner | C94: No. | D94: 1.00 | E94: 0 | F94: =SUM(E94) -> 0
B96: Refrigerators | C96: No. | D96: 1.00 | E96: 0 | F96: =D96*E96 -> 0
B98: Uninterruptable power supply | C98: No. | D98: 3.00 | E98: 0 | F98: =D98*E98 -> 0
B99: units
B101: Floodlights complete with poles | C101: No. | D101: 3.00 | E101: 0 | F101: =D101*E101 -> 0
B102: and 500 Watt minimum globes
A104: C1.4.3.31 | B104: Rain gauge | C104: No. | D104: 2.00 | E104: 0 | F104: =D104*E104 -> 0
A106: C1.4.3.32 | B106: Minimum/maximum atmospheric temperature gauge | C106: No. | D106: 2.00 | E106: 0 | F106: =D106*E106 -> 0
A108: C1.4.3.38 | B108: Standpipe complete with 30 m of 19 mm dia. heavy duty hose pipe | C108: No. | D108: 4.00 | E108: 0 | F108: =D108*E108 -> 0
A110: C1.4.5 | B110: Services
A112: C1.4.5.1 | B112: fixed cost | C112: Lump sum | D112: 1.00 | E112: 0 | F112: Rate Only
A114: C1.4.5.2 | B114: Running costs | C114: month | D114: 12.00 | E114: 0 | F114: Rate Only
B116: Services for rented houses | C116: month | D116: 12.00 | E116: 0 | F116: =D116*E116 -> 0
B118: Provision of photostat facilities | C118: month | D118: 12.00 | E118: 0 | F118: =D118*E118 -> 0
A119: Total Carried Forward To Summary | F119: =SUM(F68:F118) -> 0

Sheet C1.5
A1: ='C1.4'!A1 -> New Mashifane Park: Installation of Civil Engineering Services: Roads and Stormwater Network
A3: ='C1.4'!A3 -> Contract No: Contract "A1"
F4: C1.5 ACCOMMODATION OF TRAFFIC
A5: Item | B5: Description | C5: Unit | D5: Quantity | E5: Rate | F5: Amount (R)
A6: C1.5 | B6: ACCOMMODATION OF TRAFFIC
A8: C1.5.2 | B8: Accommodation of vehicular traffic | C8: month | D8: 12.00 | E8: 0 | F8: =D8*E8 -> 0
A10: C1.5.4 | B10: Construction of temporary deviations | C10: km | D10: 7.40 | E10: 0 | F10: Rate Only
A12: C1.5.5 | B12: Maintenance of temporary deviations: | C12: km | D12: 7.00 | E12: 0 | F12: Rate Only
A14: C1.5.5.9 | B14: Grading of temporary deviations and existing roads used as detours | C14: km | D14: 1.20 | E14: 0 | F14: =D14*E14 -> 0
A16: C1.5.5.10 | B16: Watering of temporary deviations and existing roads used as detours | C16: kℓ | D16: 650.00 | E16: 0 | F16: =D16*E16 -> 0
A18: C1.5.5.11 | B18: Other road maintenance work ordered by the Engineer | C18: prov sum | D18: 1.00 | E18: 0 | F18: =D18*E18 -> 0
A20: C1.5.5.12 | B20: Handling cost, profit and all other charges in respect of item C1.5.6.11 | C20: % | D20: 50,000.00 | E20: 0% | F20: =D20*E20 -> 0
A22: C1.5.6 | B22: Removal of temporary deviations | C22: km | D22: 6.00 | E22: 0 | F22: =D22*E22 -> 0
A24: BC1.5.7 | B24: Temporary traffic control facilities:
A26: L | B26: (a) Flagmen | C26: Person day | D26: 40.00 | E26: 0 | F26: =D26*E26 -> 0
B28: (b) Portable STOP and GO-RY signs | C28: No | D28: 8.00 | E28: 0 | F28: Rate Only
B30: (d) Amber flashing lights | C30: No | D30: 20.00 | E30: 0 | F30: Rate Only
B32: (e) Road signs, R- and TR-series
B34: (ii) 1200mm diameter | C34: No | D34: 10.00 | E34: 0 | F34: =D34*E34 -> 0
B36: (f) Road signs, TW-series with distance board
B38: (iii) 1500mm sides | C38: No | D38: 10.00 | E38: 0 | F38: =D38*E38 -> 0
B40: (g) Road signs, STW-, DTG-, TGS- AND TG-series (excluding delineators and barricades) | C40: m² | D40: 25.00 | E40: 0 | F40: =D40*E40 -> 0
B42: (h) Delineators: (TW 401 and TW 402)
B44: (i) Single (1200mm x 300mm) | C44: No | D44: 50.00 | E44: 0 | F44: =D44*E44 -> 0
B46: (ii) Double sided blade (800mm x 200mm) | C46: No | D46: 40.00 | E46: 0 | F46: =D46*E46 -> 0
B48: (i) Moveable barricade/road sign combination (Chevron and ROAD CLOSED types) | C48: No | D48: 6.00 | E48: 0 | F48: =D48*E48 -> 0
B50: (m) Two-way communication devices | C50: No | D50: 2.00 | E50: 0 | F50: Rate Only
B53: (i) 1200mm x 400mm | C53: No | D53: 10.00 | E53: 0 | F53: =D53*E53 -> 0
A54: Total Carried Forward | F54: =SUM(F6:F53) -> 0
C55: -6
A56: =A1 -> New Mashifane Park: Installation of Civil Engineering Services: Roads and Stormwater Network
F59: C1.5 ACCOMMODATION OF TRAFFIC
A60: Item | B60: Description | C60: Unit | D60: Quantity | E60: Rate | F60: Amount (R)
A61: Brought Forward | F61: =F54 -> 0
B62: (r) Removable rumble strips (ATM)
B64: (i) 3000mm x 300mm | C64: No | D64: 10.00 | E64: Rate Only | F64: Rate Only
A67: C1.5.12 | B67: Additional traffic accommodation facilities ordered by the Engineer:
A69: C1.5.12.1 | B69: Provision of additional traffic accommodation facilities | C69: prov sum | D69: 1.00 | E69: R20,000.00 | F69: =D69*E69 -> 20,000.00
A71: C1.5.12.2 | B71: Handling cost, profit and all other charges in respect of item C1.5.12.1 | C71: % | D71: 20,000.00 | E71: 10% | F71: =D71*E71 -> 2,000.00
A91: Total Carried Forward To Summary
C92: =-7 -> -7

Sheet C1.6
A1: ='C1.5'!A1 -> New Mashifane Park: Installation of Civil Engineering Services: Roads and Stormwater Network
A3: ='C1.5'!A3 -> Contract No: Contract "A1"
F4: C1.6 CLEARING AND GRUBBING
A5: Item | B5: Description | C5: Unit | D5: Quantity | E5: Rate | F5: Amount (R)
A6: C1.6 | B6: CLEARING AND GRUBBING
A8: C1.6.1 | B8: Clearing:
A10: C1.6.1.1 | B10: Clearing with machines and some hand labour where necessary | C10: ha | D10: 9.00 | E10: 0 | F10: =D10*E10 -> 0
A12: C1.6.2 | B12: Grubbing:
A14: C1.6.2.1 | B14: Grubbing with machines and some hand labour where necessary | C14: ha | D14: =D10 -> 9.00 | E14: 0 | F14: =D14*E14 -> 0
A38: Total Carried Forward To Summary | F38: =SUM(F6:F37) -> 0
C39: - 6 -

Sheet C1.7
A1: ='C1.6'!A1 -> New Mashifane Park: Installation of Civil Engineering Services: Roads and Stormwater Network
A3: ='C1.6'!A3 -> Contract No: Contract "A1"
F4: C1.7 LOADING AND HAULING
A5: Item | B5: Description | C5: Unit | D5: Quantity | E5: Rate | F5: Amount (R)
A6: C1.7 | B6: LOADING AND HAULING
A8: C1.7.2 | B8: Hauling:
A10: C1.7.2.1 | B10: Hauling material for use in the Works and off-loading it on the site of the Works:
B12: (a) Soil, gravel, crushed stone and pavement layer material | C12: m³-km | D12: 30,000.00 | E12: 0 | F12: =IF(C12 = CHAR(37), D12*E12/100,D12*E12) -> 0
A37: Total Carried Forward To Summary | F37: =SUM(F6:F36) -> 0
C38: - 7 -

Sheet C3.1
A1: ='C1.5'!A1 -> New Mashifane Park: Installation of Civil Engineering Services: Roads and Stormwater Network
A3: ='C1.5'!A3 -> Contract No: Contract "A1"
F4: C3.1 DRAINS
A5: Item | B5: Description | C5: Unit | D5: Quantity | E5: Rate | F5: Amount (R)
A6: C3.1 | B6: DRAINS
A8: C3.1.1.1 | B8: Excavating all material situated within the following depth
B9: ranges below the surface level using conventional methods
B11: (a) 0 m up to 1,5 m | C11: m³ | D11: 225.00 | E11: 0 | F11: =D11*E11 -> 0
B13: (b) Exceeding 1,5 m and up to 3,0 m | C13: m³ | D13: 388.00 | E13: 0 | F13: =SUM(D13*E13) -> 0
B15: (c) Etc, in increments of 1,5 m | C15: m³ | E15: 0 | F15: Rate Only
J16: =100*100 -> 10000
A17: C3.1.1.2 | B17: Extra over sub-item C3.1.1.1 for excavation in hard and | C17: m³ | D17: 400.00 | E17: 0 | F17: =SUM(D17*E17) -> 0
B18: boulder material, irrespective of depth
A20: C3.1.3 | B20: Clearing, shaping and disposal of accumulated sediment in
B21: existing lined open drains and systems
A23: C3.1.3.1 | B23: Using conventional methods (up to 1,5 m):
B25: (a) Manholes and inlet and outlet structures | C25: m³ | D25: 300.00 | E25: 0 | F25: =D25*E25 -> 0
B27: (b) Culvert barrels | C27: m³ | D27: 135.00 | E27: 0 | F27: Rate Only
B29: (c) Concrete or other lined side drains | C29: m³ | D29: 20.00 | E29: 0 | F29: =SUM(D29*E29) -> 0
A31: C3.1.4 | B31: Excavation for subsoil drainage
B32: systems:
A34: C3.1.4.1 | B34: Excavating in all material situated
B35: within the following depth ranges below
B36: surface level
B38: (a) 0 m up to 1,5 m | C38: m³ | D38: 600.00 | E38: 0 | F38: =SUM(D38*E38) -> 0
B40: (b) Exceeding 1,5 m and up to 3,0 m | C40: m³ | D40: 200.00 | E40: 0 | F40: =SUM(D40*E40) -> 0
A42: C3.1.4.4 | B42: Extra over sub-item C3.1.4.1 for excavation in hard and | C42: m³ | D42: 100.00 | E42: 0 | F42: =SUM(D42*E42) -> 0
B43: boulder material, irrespective of depth
A45: C3.1.5 | B45: Impermeable backfilling to subsoil drainage systems
A47: C3.1.5.1 | B47: Un-stabilised natural gravel obtained from approved sources | C47: m³ | D47: 200.00 | E47: 0 | F47: =SUM(D47*E47) -> 0
B48: on the site
A50: C3.1.5.3 | B50: Extra over items C3.1.5.1 | C50: m³
A52: C3.1.8 | B52: Natural permeable material in subsoil
B53: drainage systems (sand)
A55: C3.1.8.1 | B55: Natural sand obtained from approved sources | C55: m³ | D55: 300.00 | E55: 0 | F55: =SUM(D55*E55) -> 0
A57: C3.1.8.2 | B57: Natural sand from commercial sources | C57: m³ | D57: 125.00 | E57: 0 | F57: =SUM(D57*E57) -> 0
A59: C3.1.9 | B59: Pipes in subsoil drainage systems:
A61: C3.1.9.1 | B61: HDPE (i) 110 mm internal dia., slotted | C61: m | D61: 700 | E61: 0 | F61: =SUM(D61*E61) -> 0
A63: C3.1.10 | B63: Polymer film sheeting or similar approved material, for lining
B64: subsoil drainage systems:
A66: C3.1.10.1 | B66: 0,15 mm thick | C66: m² | D66: 800 | E66: 0 | F66: =SUM(D66*E66) -> 0
A68: Total Carried Forward | F68: =SUM(F2:F67) -> 0
A70: New Mashifani Park: Installation of Civil Engineering Services: Roads & Stormwater Network
A72: Contract No: Contract 'A1'
A74: Item | B74: Description | C74: Unit | D74: Quantity | E74: Rate | F74: Amount (R)
A75: Brought Forward | F75: =F68 -> 0
A78: C3.1.10.2 | B78: 0,25 mm thick | C78: m² | D78: 300 | E78: 0 | F78: Rate Only
A80: C3.1.13 | B80: Concrete outlet structures, manhole
B81: boxes, junction boxes and cleaning eyes
B82: for subsoil drainage systems:
A84: C3.1.13.1 | B84: Outlet structures | C84: No. | D84: 4 | E84: 0 | F84: =SUM(D84*E84) -> 0
A86: C3.1.13.2 | B86: Inspection boxes | C86: No | E86: 0 | F86: Rate Only
A88: C3.1.13.3 | B88: Junction boxes | C88: No. | D88: 8 | E88: 0 | F88: =SUM(D88*E88) -> 0
A90: C3.1.13.4 | B90: Cleaning eyes | C90: No. | D90: 15 | E90: 0 | F90: =SUM(D90*E90) -> 0
A92: C3.1.14 | B92: Concrete caps for subsoil drain pipes
A94: C3.1.14.1 | B94: Concrete caps | C94: No. | D94: 15 | E94: 0 | F94: =SUM(D94*E94) -> 0
A96: C3.1.16 | B96: Overhaul for material hauled in excess | C96: m³-km | D96: 3,500.00 | E96: 0 | F96: =D96*E96 -> 0
B97: of 1,0 km free haul (normal overhaul)
A99: C3.1.17 | B99: Backfilling existing eroded side drains | C99: m³ | D99: 200 | E99: 0 | F99: =D99*E99 -> 0
A101: C3.1.18 | B101: Backfilling of drains with selected material compacted to | C101: m³ | D101: 1800 | E101: 0 | F101: =D101*E101 -> 0
B102: 93 % of MDD prior to construction of concrete lining and/or
B103: stone pitched lining
A105: C3.1.22 | B105: Test flushing of pipe subsoil drains | C105: No. | E105: 0 | F105: Rate Only
A107: C3.1.23 | B107: Excavation, laying, backfilling and testing of 110mm dia pvc . sleeves pipes | C107: m | D107: 5500 | E107: 0 | F107: 0
B111: CARRIED TO SUMMARY | F111: =SUM(F75:F106) -> 0

Sheet C3.2
A1: ='C1.5'!A1 -> New Mashifane Park: Installation of Civil Engineering Services: Roads and Stormwater Network
A3: ='C1.5'!A3 -> Contract No: Contract "A1"
F4: C3.2 CULVERTS
A5: Item | B5: Description | C5: Unit | D5: Quantity | E5: Rate | F5: Amount (R)
A6: C3.2 | B6: CULVERTS
A8: C3.2.1.1 | B8: Excavating in all material situated within the following depth ranges below the surface level:
A10: (a) | B10: 0 m to 1,5 m | C10: m³ | D10: 2,000.00 | E10: 0 | F10: =SUM(D10*E10) -> 0
A12: (b) | B12: Exceeding 1,5 m and up to 3,0 m | C12: m³ | D12: 7500.00 | E12: 0 | F12: =SUM(D12*E12) -> 0
A14: (c ) | B14: Exceeding 3,0m up to 4,0 m | C14: m³ | D14: 450.00 | E14: 0 | F14: =SUM(D14*E14) -> 0
A16: C3.2.1.4 | B16: Extra over sub-item C3.2.1.1 for excavation in hard or boulder material, irrespective of depth | C16: m³ | D16: 2500.00 | E16: 0 | F16: =SUM(D16*E16) -> 0
A18: C3.2.2 | B18: Backfilling:
A20: C3.2.2.1 | B20: Using the excavated material | C20: m³ | D20: =SUM(D10:D16) -> 12450.00 | E20: 0 | F20: =D20*E20 -> 0
A22: C3.2.3 | B22: Concrete pipe culverts:
A24: C3.2.3.2 | B24: On Class B bedding:
A26: (a) | B26: 600mmØ 75D | C26: m | D26: =3100-1900 -> 1200.00 | E26: 0 | F26: =D26*E26 -> 0
A28: (b) | B28: 600mmØ 100D | C28: m | D28: 900.00 | E28: 0 | F28: =D28*E28 -> 0
A30: (c ) | B30: 675mmØ 75D | C30: m | D30: 130.00 | E30: 0 | F30: =D30*E30 -> 0
A32: (d) | B32: 675mmØ 100D | C32: m | D32: 135.00 | E32: 0 | F32: =D32*E32 -> 0
A34: (e ) | B34: 750mmØ 75D | C34: m | D34: =210-155 -> 55.00 | E34: 0 | F34: =D34*E34 -> 0
A36: (f ) | B36: 750mmØ 100D | C36: m | D36: 80.00 | E36: 0 | F36: =D36*E36 -> 0
A38: (g) | B38: 825mmØ 75D | C38: m | D38: 55.00 | E38: 0 | F38: =D38*E38 -> 0
A40: (h) | B40: 825mmØ 100D | C40: m | D40: 110.00 | E40: 0 | F40: =D40*E40 -> 0
A42: (i) | B42: 900mmØ 75D | C42: m | D42: 80.00 | E42: 0 | F42: =D42*E42 -> 0
A44: (j) | B44: 900mmØ 100D | C44: m | D44: 105.00 | E44: 0 | F44: =D44*E44 -> 0
A46: (k) | B46: 1050mmØ 75D | C46: m | D46: 87.00 | E46: 0 | F46: =D46*E46 -> 0
A48: (l) | B48: 1050mmØ 100D | C48: m | D48: 110.00 | E48: 0 | F48: =D48*E48 -> 0
A50: (m) | B50: 1200mmØ 75D | C50: m | D50: 115.00 | E50: 0 | F50: =D50*E50 -> 0
A52: (n) | B52: 1200mmØ 100D | C52: m | D52: 110.00 | E52: 0 | F52: =D52*E52 -> 0
A54: (o) | B54: 1350mmØ 75D | C54: m | D54: 400.00 | E54: 0 | F54: =D54*E54 -> 0
A56: (p) | B56: 1350mmØ 100D | C56: m | D56: 155.00 | E56: 0 | F56: =D56*E56 -> 0
A58: C3.2.3.5 | B58: Provision of skew ends of pipe culvert
B60: (600-1350mmØ | C60: No | D60: 10.00 | E60: 0 | F60: =D60*E60 -> 0
A62: C3.2.7 | B62: Cast in situ concrete and formwork:
A64: C3.2.7.1 | B64: In Class A bedding, screeds, concrete backfill and the encasing for pipes, including formwork, (25MPa) | C64: m³ | D64: 55 | E64: 0 | F64: =D64*E64 -> 0
A66: C3.2.7.2 | B66: In complete in situ floor slabs for rectangular culverts, manholes and catchpits including formwork, joints and Class U2 surface finish (25MPa) (installed at a standard depth of 1,0 m) | C66: m³ | D66: 65 | E66: 0 | F66: =D66*E66 -> 0
A68: C3.2.7.3 | B68: In walls, excluding formwork but including Class U2 surface finish (25MPa) | C68: m³ | D68: 80 | E68: 0 | F68: =D68*E68 -> 0
A70: C3.2.7.5 | B70: In inlet and outlet structures including kerbs, chutes and downpipes, skewed ends, catchpits, manholes, thrust and anchor blocks, excluding formwork but including Class U2 surfacing finish (25MPa) | C70: m³ | D70: 35 | E70: 0 | F70: =D70*E70 -> 0
A72: Total Carried Forward | F72: =SUM(F6:F71) -> 0
A74: New Mashifani Park: Installation of Civil Engineering Services: Roads & Stormwater Network
A76: Contract No: Contract "A1"
A78: Item | B78: Description | C78: Unit | D78: Quantity | E78: Rate | F78: Amount (R)
A79: Brought Forward | F79: =F72 -> 0
A81: C3.2.7.6 | B81: Formwork of concrete under items C3.2.7.3 to 5 above (U2) | C81: m² | D81: 200 | E81: 0 | F81: =D81*E81 -> 0
A83: C3.2.8 | B83: Concrete backfill or encasement for culverts (19mm 20MPa) | C83: m³ | D83: 30 | E83: 0 | F83: =D83*E83 -> 0
A85: C3.2.10 | B85: Reinforcement:
A87: C3.2.10.1 | B87: Mild steel bars | C87: Ton | D87: 2 | E87: 0 | F87: =D87*E87 -> 0
A89: C3.2.10.2 | B89: High-tensile steel bars | C89: Ton | D89: 7 | E89: 0 | F89: =D89*E89 -> 0
A91: C3.2.10.3 | B91: Welded steel fabric | C91: kg | D91: =13000-8000 -> 5000 | E91: 0 | F91: =D91*E91 -> 0
A93: C3.2.15 | B93: Manholes and catch pits, with prefabricated elements
A95: C3.2.15.1 | B95: Prefabricated floors (installed at a standard depth of 1,5 m):
A97: (a) | B97: 600mmØ | C97: No | D97: =200-135 -> 65 | E97: 0 | F97: =D97*E97 -> 0 | I97: 388
A99: (b) | B99: 750mmØ | C99: No | D99: 10 | E99: 0 | F99: =D99*E99 -> 0
A101: (c ) | B101: 900mmØ | C101: No | D101: =38-25 -> 13 | E101: 0 | F101: =D101*E101 -> 0
A103: C3.2.15.2 | B103: Prefabricated roofs:
A105: (a) | B105: 600mmØ | C105: No | D105: =200-135 -> 65 | E105: 0 | F105: =D105*E105 -> 0
A107: (b) | B107: 750mmØ | C107: No | D107: 10 | E107: 0 | F107: =D107*E107 -> 0
A109: (c ) | B109: 900mmØ | C109: No | D109: =38-25 -> 13 | E109: 0 | F109: =D109*E109 -> 0
A111: C3.2.15.3 | B111: Prefabricated walls
A113: (a) | B113: 600mmØ | C113: m | D113: 135 | E113: 0 | F113: =D113*E113 -> 0
A115: (b) | B115: 750mmØ | C115: m | D115: 25 | E115: 0 | F115: =D115*E115 -> 0
A117: (c ) | B117: 900mmØ | C117: m | D117: =38-25 -> 13 | E117: 0 | F117: =D117*E117 -> 0
A119: C3.2.15.4 | B119: Extra over item C3.2.15.1 and C3.2.7.2 for variations in the depths of all types of concrete manholes with prefabricated wall combinations deeper than 1,0 m | C119: m | D119: 125 | E119: 0 | F119: =D119*E119 -> 0
A121: C3.2.16 | B121: Brickwork (Engineering bricks):
A123: C3.2.16.2 | B123: 230 mm thick | C123: m² | D123: 85 | E123: 0 | F123: =D123*E123 -> 0
A125: C3.2.17 | B125: Plaster | C125: m² | D125: 85 | E125: 0 | F125: =D125*E125 -> 0
A127: C3.2.18 | B127: Benching | C127: m² | D127: 155 | E127: 0 | F127: =D127*E127 -> 0
A129: C3.2.19 | B129: Accessories:
A131: C3.2.19.2 | B131: Inlet grids or covers | C131: No | D131: 24 | E131: 0 | F131: =D131*E131 -> 0
A133: C3.2.19.3 | B133: Manhole frames | C133: No | D133: 24 | E133: 0 | F133: =D133*E133 -> 0
A135: C3.2.19.4 | B135: Manhole covers or gratings | C135: No | D135: 15 | E135: 0 | F135: =D135*E135 -> 0
A137: C3.2.20 | B137: Anchors for pipes | C137: No | D137: 40 | E137: 0 | F137: =D137*E137 -> 0
A139: C3.2.24 | B139: Compaction of bedding for inlets, outlets, manholes and catchpits:
A141: C3.2.24.1 | B141: Preparation and compaction of in situ bedding material to 93 % of MDD (200mm) | C141: m³ | D141: 85 | E141: 0 | F141: =D141*E141 -> 0
B150: CARRIED TO SUMMARY | F150: =SUM(F79:F148) -> 0

Sheet C3.3
A1: ='C1.5'!A1 -> New Mashifane Park: Installation of Civil Engineering Services: Roads and Stormwater Network
A3: ='C1.5'!A3 -> Contract No: Contract "A1"
F4: C3.3 CONCRETE KERBING AND CHANNELLING
A5: Item | B5: Description | C5: Unit | D5: Quantity | E5: Rate | F5: Amount (R)
A6: C3.3 | B6: CONCRETE KERBING AND CHANNELLING, ASPHALT BERMS, CHUTES, DOWNPIPES, AS WELL AS CONCRETE, STONE PITCHED AND GABION LININGS FOR OPEN DRAINS
A8: C3.3.1.1 | B8: Prefabricated kerbing-channeling
B10: Figure 8c | C10: m | D10: =17500-10200 -> 7,300.00 | E10: 0 | F10: =D10*E10 -> 0
B12: Figure 7 | C12: m | D12: =3200-1055 -> 2145.00 | E12: 0 | F12: =D12*E12 -> 0
B14: Figure 3 | C14: m | D14: =2200-1455 -> 745.00 | E14: 0 | F14: =D14*E14 -> 0
B16: Figure 12 | C16: m | D16: =12000-5350 -> 6650.00 | E16: 0 | F16: =D16*E16 -> 0
B18: Cast in situ concrete channeling (300mm wide x 100mm thk) | C18: m | D18: =12500-6200 -> 6300.00 | E18: 0 | F18: =SUM(D18*E18) -> 0
B20: Transition kerbing as per drawing | C20: m | D20: =450-125 -> 325.00 | E20: 0 | F20: =D20*E20 -> 0
A24: C3.3.3 | B24: Extra over items C3.3.1 for concrete kerbing or concrete kerbing and channeling on curves
A26: C3.3.3.1 | B26: On curves of radii more than or equal to 5,0 m but less than 20 m | C26: m | D26: 125.00 | E26: 0 | F26: =D26*E26 -> 0
A28: C3.3.3.2 | B28: On curves with radii more than or equal to 1,0 m but less than 5,0 m | C28: m | E28: 0 | F28: Rate Only
A30: C3.3.3.3 | B30: On curves with radii less than 1,0 m | C30: m | E30: 0 | F30: Rate Only
A32: C3.3.15 | B32: Energy dissipaters in outlet structures
A34: C3.3.15.1 | B34: Precast concrete blocks in outlet structures | C34: No | D34: 55.00 | E34: 0 | F34: =D34*E34 -> 0
A36: C3.3.15.2 | B36: Stones set in outlet structures | C36: m² | D36: 120.00 | E36: 0 | F36: =D36*E36 -> 0
A38: C3.3.16 | B38: Demolition and removal of existing kerbs and/or channel | C38: m³ | D38: 105.00 | E38: 0 | F38: =D38*E38 -> 0
B73: CARRIED TO SUMMARY | F73: =SUM(F10:F59) -> 0

Sheet C4.1
A1: ='C1.5'!A1 -> New Mashifane Park: Installation of Civil Engineering Services: Roads and Stormwater Network
A3: ='C1.5'!A3 -> Contract No: Contract "A1"
F4: C4.1 BORROW MATERIALS
A5: Item | B5: Description | C5: Unit | D5: Quantity | E5: Rate | F5: Amount (R)
A6: C4.1 | B6: BORROW MATERIALS
A8: C4.1.2 | B8: Additional material investigations during the supplementary exploration:
A10: C4.1.2.1 | B10: Cost of additional trial pits and / or drilling and laboratory testing | C10: prov sum | D10: 1.00 | E10: 0 | F10: =D10*E10 -> 0
A12: C4.1.2.2 | B12: Handling costs and profit in respect of item C4.1.2.1 | C12: % | D12: =F10 -> 0 | E12: 0% | F12: =D12*E12 -> 0
A14: C4.1.4 | B14: Removing of the overburden:
A16: C4.1.4.1 | B16: In borrow pits | C16: m³ | D16: 3,000.00 | E16: 0 | F16: =D16*E16 -> 0
A18: C4.1.5 | B18: Excavating of materials in the borrow pits and quarries, material obtained from:
A20: C4.1.5.1 | B20: Soft excavation | C20: m³ | D20: 6,200.00 | E20: 0 | F20: =D20*E20 -> 0
A22: C4.1.5.4 | B22: Hard excavation (other than by blasting) | C22: m³ | D22: 4,500.00 | E22: 0 | F22: =D22*E22 -> 0
A24: C4.1.5.5 | B24: Hard excavation (by blasting) | C24: m³ | D24: 0 | E24: 0 | F24: Rate Only
A26: C4.1.15.2 | B26: Finishing of the borrow pit and quarry areas, and the stockpile sites using labour enhanced methods of construction:
B28: (a) Borrow pits (list all borrow pits separately) | C28: ha | D28: 3.00 | E28: 0 | F28: =D28*E28 -> 0
A45: Total Carried Forward To Summary | F45: =SUM(F6:F44) -> 0
C46: - 8 -

Sheet C4.2
A1: ='C1.5'!A1 -> New Mashifane Park: Installation of Civil Engineering Services: Roads and Stormwater Network
A3: ='C1.5'!A3 -> Contract No: Contract "A1"
F4: C4.2 CUT MATERIALS
A5: Item | B5: Description | C5: Unit | D5: Quantity | E5: Rate | F5: Amount (R)
A6: C4.2 | B6: CUT MATERIALS
A8: C4.2.2 | B8: Additional material investigations during the supplementary exploration
A10: C4.2.2.1 | B10: Cost of additional trial pits and/or drilling and laboratory testing | C10: Prov Sum | D10: 1.00 | E10: 0 | F10: =D10*E10 -> 0
A12: C4.2.2.2 | B12: Handling costs and profit in respect of item C4.2.2.1 | C12: % | D12: =F10 -> 0 | E12: 0% | F12: =D12*E12 -> 0
A14: C4.2.3 | B14: Excavating of materials in cuttings, material obtained from
A16: C4.2.3.1 | B16: Soft excavation | C16: m³ | D16: 7,000.00 | E16: 0 | F16: =D16*E16 -> 0
A18: C4.2.3.2 | B18: Boulder excavation class A | C18: m³ | F18: Rate Only
A20: C4.2.3.3 | B20: Boulder excavation class B | C20: m³ | F20: Rate Only
A22: C4.2.3.4 | B22: Hard excavation (other than by blasting) | C22: m³ | D22: 1,500.00 | E22: 0 | F22: =D22*E22 -> 0
A24: C4.2.3.5 | B24: Hard excavation (by blasting) | C24: m³ | F24: Rate Only
T25: 0.85 | U25: 0.15
A26: C4.2.4 | B26: Excavating of materials in box cuts, material obtained from | S26: =Q28*0.5 -> 55800 | T26: =S26*$T$25 -> 47430 | U26: =S26*$U$25 -> 8370
S27: =Q28*0.3 -> 33480 | T27: =S27*$T$25 -> 28458 | U27: =S27*$U$25 -> 5022
A28: C4.2.4.1 | B28: Soft excavation | C28: m³ | D28: 38,400.00 | E28: 0 | F28: =D28*E28 -> 0 | N28: 18600 | O28: 10 | P28: 0.6 | Q28: =N28*O28*P28 -> 111600 | S28: =Q28*0.2 -> 22320 | T28: =S28*$T$25 -> 18972 | U28: =S28*$U$25 -> 3348
Q29: =Q28/2 -> 55800 | S29: =SUM(S26:S28) -> 111600
A30: C4.2.4.2 | B30: Boulder excavation class A | C30: m³ | F30: Rate Only
A32: C4.2.4.3 | B32: Boulder excavation class B | C32: m³ | F32: Rate Only
A34: C4.2.4.4 | B34: Hard excavation (other than by blasting) | C34: m³ | D34: 1,500.00 | E34: 0 | F34: =D34*E34 -> 0
A36: C4.2.4.5 | B36: Hard excavation (by blasting) | C36: m³ | D36: 800.00 | E36: 0 | F36: =SUM(D36*E36) -> 0
A38: C4.2.8 | B38: Excavate material to spoil in sites designated by the Contractor, material obtained from
A40: C4.2.8.1 | B40: Soft excavation, overburden and unsuitable material | C40: m³ | D40: 2,500.00 | E40: 0 | F40: =D40*E40 -> 0
J41: =SUM(D16:D34) -> 48,400.00
A42: C4.2.8.2 | B42: Boulder excavation class A | C42: m³ | F42: Rate Only
A44: C4.2.8.3 | B44: Boulder excavation class B | C44: m³ | F44: Rate Only
A46: C4.2.8.4 | B46: Hard excavation (other than by blasting) | C46: m³ | D46: 1,200.00 | E46: 0 | F46: =D46*E46 -> 0
A51: Total Carried Forward To Summary | F51: =SUM(F6:F50) -> 0

Sheet C4.4
A1: ='C1.5'!A1 -> New Mashifane Park: Installation of Civil Engineering Services: Roads and Stormwater Network
A3: ='C1.5'!A3 -> Contract No: Contract "A1"
F4: C4.4 COMMERCIAL MATERIALS
A5: Item | B5: Description | C5: Unit | D5: Quantity | E5: Rate | F5: Amount (R)
A6: C4.4 | B6: COMMERCIAL MATERIALS
A8: C4.4.2 | B8: Commercial materials identified by the Contractor from commercial, private or other non-commercial suppliers:
A10: C4.4.2.1 | B10: Pavement layer material:
B12: (a) Type G1 material | C12: m³ | D12: 6,300 | E12: 0 | F12: =IF(C12 = CHAR(37), D12*E12/100,D12*E12) -> 0
A14: C4.4.7 | B14: Sampling and material testing by a commercial laboratory for the stabilisation designs
A16: C4.4.7.1 | B16: Cost of sampling and material testing | C16: P. Suum | D16: 1.00 | E16: 0 | F16: =D16*E16 -> 0
E17: .
A18: C4.4.7.2 | B18: Handling cost and profit in respect of item C4.4.7.1 | C18: % | D18: =F16 -> 0 | E18: 0% | F18: =E18*D18 -> 0
A50: Total Carried Forward To Summary | F50: =SUM(F6:F49) -> 0
C51: - 9 -

Sheet C.5.1
A1: ='C1.5'!A1 -> New Mashifane Park: Installation of Civil Engineering Services: Roads and Stormwater Network
A3: ='C1.5'!A3 -> Contract No: Contract "A1"
F4: C5.1 ROADBED
A5: Item | B5: Description | C5: Unit | D5: Quantity | E5: Rate | F5: Amount (R)
A6: C5.1 | B6: ROADBED
A8: C5.1.1 | B8: Roadbed construction and compaction:
A10: C5.1.1.2 | B10: Compaction of in-situ sand roadbed to 93 % of MDD | C10: m³ | D10: 3,750.00 | E10: 0 | F10: =D10*E10 -> 0
A12: C5.1.1.3 | B12: Compaction of imported material to 93 % of MDD | C12: m³ | D12: 700.00 | E12: 0 | F12: =D12*E12 -> 0
A14: C5.1.2 | B14: Excavate material to spoil from roadbed construction:
A16: C5.1.2.1 | B16: Excavate material to spoil from roadbed construction, material obtained from:
B18: (a) Soft excavation | C18: m³ | D18: 1,000.00 | E18: 0 | F18: =D18*E18 -> 0
B20: (d) Hard excavation | C20: m³ | D20: 200.00 | E20: 0 | F20: =D20*E20 -> 0
A22: C5.1.4 | B22: Removal of unsuitable material to spoil:
A24: C5.1.4.1 | B24: In layer thicknesses of 200 mm and less:
B26: (a) Stable material | C26: m³ | D26: 1,000.00 | E26: 0 | F26: =D26*E26 -> 0
B28: (b) Unstable material | C28: m³ | D28: 1,200.00 | E28: 0 | F28: =D28*E28 -> 0
A30: C5.1.5 | B30: In-situ treatment of roadbed in hard material:
A32: C5.1.5.2 | B32: In-situ treatment by drilling and blasting | C32: m³ | D32: 100.00 | E32: 0 | F32: =D32*E32 -> 0
A34: C5.1.6 | B34: Roller-pass compaction:
A36: C5.1.6.3 | B36: Smooth drum vibratory rollers | C36: m² | D36: 50,000.00 | E36: 0 | F36: =D36*E36 -> 0
A38: C5.1.12 | B38: Excavation for benches:
A40: C5.1.12.1 | B40: Excavation for benches:
B42: (a) Side-cut to fill in soft material | C42: m³ | E42: 0 | F42: Rate Only
B44: (b) Side-cut to spoil in soft material | C44: m³ | E44: 0 | F44: Rate Only
A46: C5.1.13 | B46: Construction of a levelling layer:
A48: C5.1.13.1 | B48: Over roadbed treatment in hard material compacted to 90 % MDD | C48: m³ | D48: 0 | E48: 0 | F48: Rate Only
A50: C5.1.13.2 | B50: Over a constructed pioneer layer compacted to 90 % MDD | C50: m³ | D50: 0 | E50: 0 | F50: Rate Only
A61: Total Carried Forward To Summary | F61: =SUM(F10:F50) -> 0
C62: - 10 -

Sheet C5.2
A1: ='C1.5'!A1 -> New Mashifane Park: Installation of Civil Engineering Services: Roads and Stormwater Network
A3: ='C1.5'!A3 -> Contract No: Contract "A1"
F4: C5.2 FILL LAYERS
A5: Item | B5: Description | C5: Unit | D5: Quantity | E5: Rate | F5: Amount (R)
B6: FILL LAYERS
A8: C5.2.2 | B8: FILL CONSTRUCTION
A10: C5.2.2.1 | B10: Normal fill material in compacted layer thicknesses of 200 mm and less:
B12: (b) Compacted to 93 % of MDD | C12: m³ | D12: 8,000.00 | E12: 0 | F12: =IF(C12 = CHAR(37), D12*E12/100,D12*E12) -> 0
A14: C5.2.5 | B14: Fill in sidewalk
A16: C5.2.5.2 | B16: Fill material in sidewalk compacted to 93 % of MDD using labour enhanced methods of construction and light hand equipment. | C16: m³ | D16: 1,400.00 | E16: 0 | F16: =IF(C16 = CHAR(37), D16*E16/100,D16*E16) -> 0
A18: C5.2.11 | B18: Finishing-off fill slopes, medians and interchange areas
A20: C5.2.11.1 | B20: Fill slopes | C20: m³ | D20: 5,100.00 | E20: 0 | F20: =IF(C20 = CHAR(37), D20*E20/100,D20*E20) -> 0
A46: Total Carried Forward To Summary | F46: =SUM(F8:F45) -> 0

Sheet C5.3
A1: ='C1.5'!A1 -> New Mashifane Park: Installation of Civil Engineering Services: Roads and Stormwater Network
A3: ='C1.5'!A3 -> Contract No: Contract "A1"
F4: C5.3 ROAD PAVEMENT LAYERS
A5: Item | B5: Description | C5: Unit | D5: Quantity | E5: Rate | F5: Amount (R)
B6: ROAD PAVEMENT LAYERS
A8: C5.3.2 | B8: Construction of pavement layers:
A10: C5.3.2.1 | B10: Construction of layers using conventional construction methods:
B12: (a) Selected layer - G5 - (150mm thick) compacted to 95 % Mos Aashto Density - Sub Base | C12: m³ | D12: 6,000.00 | E12: 0 | F12: =IF(C12 = CHAR(37), D12*E12/100,D12*E12) -> 0
J13: =0.15*10.2*100 -> 153
B14: (b) Selected layer - G5- (150mm thick) Stabilised to C4 Lower Sub-Base | C14: m³ | D14: 5,800.00 | E14: 0 | F14: =D14*E14 -> 0
B16: (c) Selected layer G5 (Stabilized) (150mm thick) To C3 Upper Sub-Base Layer | C16: m³ | D16: 3,650.00 | E16: 0 | F16: =IF(C16 = CHAR(37), D16*E16/100,D16*E16) -> 0
B18: (d) Gravel Base layer G5 (Stabilized) (150mm thick) Stabilized to C4 Base layer | C18: m³ | D18: 3,400.00 | E18: 0 | F18: =D18*E18 -> 0
A20: C5.3.2.2 | B20: Construction of layers using labour enhancement:
B21: (e ) Gravel wearing course layer (layer thickness indicated) compacted to 95 % of MDD | C21: m³ | D21: 1,250.00 | E21: 0 | F21: =D21*E21 -> 0
A23: C5.3.9 | B23: Construction of a trial section:
A25: C5.3.9.1 | B25: Construction of a trial section using conventional methods of construction:
B27: (a) Stabilised gravel layer (150mm thick) trial section | C27: m³ | D27: 180.00 | E27: 0 | F27: =IF(C27 = CHAR(37), D27*E27/100,D27*E27) -> 0
B29: (c) Crushed stone base layer (150mm thick) trial section | C29: m³ | D29: =D27 -> 180.00 | E29: 0 | F29: =IF(C29 = CHAR(37), D29*E29/100,D29*E29) -> 0
A32: C5.3.12 | B32: Surface regularity payment adjustments | C32: prov sum | D32: 1.00 | E32: R100,000.00 | F32: =IF(C32 = CHAR(37), D32*E32/100,D32*E32) -> R100,000.00
A43: Total Carried Forward To Summary
C44: - 11 -

Sheet C5.4
A1: ='C1.5'!A1 -> New Mashifane Park: Installation of Civil Engineering Services: Roads and Stormwater Network
A3: ='C1.5'!A3 -> Contract No: Contract "A1"
F4: C5.4 STABILISATION
A5: Item | B5: Description | C5: Unit | D5: Quantity | E5: Rate | F5: Amount (R)
A6: C5.4 | B6: STABILISATION
A8: C5.4.1 | B8: Pre-treatment of gravel layers:
A10: C5.4.1.1 | B10: Pre-treatment of (150mm thick) gravel layer | C10: m³ | D10: 0 | E10: 0 | F10: Rate Only
A12: C5.4.2 | B12: Chemical Stabilization
A14: C5.4.2.1 | B14: Chemical stabilisation (150mm) of base layers | C14: m³ | D14: =SUM('C5.3'!D16,'C5.3'!D18) -> 7,050.00 | E14: 0 | F14: =E14*D14 -> 0
B16: Chemical stabilisation (150mm) of subbase layers | C16: m³ | D16: =SUM('C5.3'!D12,'C5.3'!D14) -> 11,800.00 | E16: 0 | F16: =D16*E16 -> 0
A19: C5.4.5 | B19: Cementitious stabilisation agents for pavement layers:
A21: C5.4.5.2 | B21: Addition of cementitious stabilisation agents (specify agent separately) for pavement layers and spreading the agent using bags and labour enhancement methods:
J22: Mod | K22: Compaction | L22: Percentage
B23: (a) Cement (for base and subbase) | C23: t | D23: 600.00 | E23: 0 | F23: =IF(C23 = CHAR(37), D23*E23/100,D23*E23) -> 0 | J23: 1909 | K23: 98% | L23: 3% | M23: =J23*K23*L23 -> 56.12
J24: Length | K24: Width | L24: Depth
B25: (b) And so forth for other agents (for pavement layers) | C25: t | D25: 0 | E25: 0 | F25: Rate Only | J25: 18600 | K25: 7.4 | L25: 0.15 | M25: =J25*K25*L25 -> 20,646.00
L26: Cement | M26: =ROUNDUP(M25/M23,0)+ROUNDUP(M23*M25,0) -> 1,159,117.00 | N26: Kg
A27: C5.4.10 | B27: Provision and application of water for curing | C27: kℓ | D27: 700.00 | E27: 0 | F27: =IF(C27 = CHAR(37), D27*E27/100,D27*E27) -> 0 | M27: =M26/1000 -> 1,159.12 | N27: Tons
A29: C5.4.14 | B29: Trial section for a stabilised layer | C29: m³ | D29: 170.00 | E29: 0 | F29: =IF(C29 = CHAR(37), D29*E29/100,D29*E29) -> 0
A49: Total Carried Forward To Summary | F49: =SUM(F6:F48) -> 0
C50: - 12 -

Sheet C6.2
A1: ='C1.5'!A1 -> New Mashifane Park: Installation of Civil Engineering Services: Roads and Stormwater Network
A3: ='C1.5'!A3 -> Contract No: Contract "A1"
F4: C6.2 SEGMENTAL BLOCK PAVING LAYERS
A5: Item | B5: Description | C5: Unit | D5: Quantity | E5: Rate | F5: Amount (R)
A6: C6.2 | B6: SEGMENTAL BLOCK PAVING LAYERS
A8: C6.2.1 | B8: Segmental Block paving
A10: C6.2.1.1 | B10: Concrete block paving (S-A type, 80mm thick) | C10: m² | D10: 20,000.00 | E10: 0 | F10: =D10*E10 -> 0
A12: C6.2.1.2 | B12: Concrete block paving (S-A type, 60mm thick) | C12: m² | D12: 6,500.00 | E12: 0 | F12: =D12*E12 -> 0
A14: C6.2.2 | B14: Cast in-situ concrete edge and intermediate beams | C14: m³ | D14: =0.2*0.3*1000 -> 60 | E14: 0 | F14: =D14*E14 -> 0
A16: C6.2.3.1 | B16: Provision of materials | C16: Prime cost sum | D16: 1.00 | E16: 0 | F16: =D16*E16 -> 0 | J16: =0.2*0.3*[1]Sheet1!$G$12 -> 634.08216
J17: =J16*1.1 -> 697.490376
A18: C6.2.3.2 | B18: Contractor’s charges and profit | C18: % | D18: =F16 -> 0 | E18: 0% | F18: =D18*E18 -> 0
I20: =0.02*[1]Sheet1!$G$12 -> 211.36072 | J20: =13900*1.05 -> 14595
I21: =I20*1.1 -> 232.496792
A52: Total Carried Forward To Summary | F52: =SUM(F6:F51) -> 0
C53: - 12 -

Sheet C8.1
A1: ='C1.5'!A1 -> New Mashifane Park: Installation of Civil Engineering Services: Roads and Stormwater Network
A3: ='C1.5'!A3 -> Contract No: Contract "A1"
F4: C8.1 PRIME COAT
A5: Item | B5: Description | C5: Unit | D5: Quantity | E5: Rate | F5: Amount (R)
A6: C8.1 | B6: PRIME COAT
A8: C8.1.1 | B8: Prime coat:
A10: C8.1.1.2 | B10: MC -30 cut-back bitumen | C10: ℓ | D10: 13,000.00 | E10: 0 | F10: =IF(C10 = CHAR(37), D10*E10/100,D10*E10) -> 0
A12: C8.1.1.3 | B12: Inverted bitumen emulsion | C12: ℓ | D12: 0 | E12: 0 | F12: Rate Only
A14: C8.1.2 | B14: Aggregate for blinding:
A16: C8.1.2.2 | B16: Crusher sand | C16: m³ | E16: 0 | F16: Rate Only
A18: C8.1.3 | B18: Extra over item C8.1.1 for applying the prime coat accessible only to hand-held or light equipment | C18: ℓ | D18: 200.00 | E18: 0 | F18: =D18*E18 -> 0
A47: Total Carried Forward To Summary | F47: =SUM(F6:F46) -> 0
C48: - 13 -

Sheet C.9.1
A1: ='C1.5'!A1 -> New Mashifane Park: Installation of Civil Engineering Services: Roads and Stormwater Network
A3: ='C1.5'!A3 -> Contract No: Contract "A1"
F4: C9.1 ASPHALT LAYERS
A5: Item | B5: Description | C5: Unit | D5: Quantity | E5: Rate | F5: Amount (R)
A6: C9.1 | B6: ASPHALT LAYERS
A8: C9.1.5.1 | B8: New construction:
B10: (ii) (a) Stone skeletal mix – continuously graded as defined (30mm, 70/100 Pennetration Grade Bitumen and design class / level) | C10: m² | D10: 19,000.00 | E10: 0 | F10: =D10*E10 -> 0
A12: C9.1.6 | B12: Extra over pay items C.9.1.4.1 and C.9.1.5.1 for placing small quantities of asphalt of less than 10 tons specially produced as specified in terms of Clause A9.1.7.1d) | C12: t | D12: 10.00 | E12: 0 | F12: =IF(C12 = CHAR(37), D12*E12/100,D12*E12) -> 0
A14: C9.1.2 | B14: Construction of trial sections: | J14: =8.2*100 -> 820
A16: C9.1.2.1 | B16: Asphalt layers - Continously graded, 30mm thick, 50/70 Penetration Grade Bitumen, applied by paver | C16: m² | D16: 600.00 | E16: 0 | F16: =IF(C16 = CHAR(37), D16*E16/100,D16*E16) -> 0
B18: Removal of trial section where so instructed by the Engineer | C18: m² | D18: =D16 -> 600.00 | E18: 0 | F18: =D18*E18 -> 0
A20: C9.1.3 | B20: Application of bond coat:
A22: C9.1.6 | B22: Extra over pay items C.9.1.4.1 and C.9.1.5.1 for placing small quantities of asphalt of less than 10 tons specially produced as specified in terms of Clause A9.1.7.1d) | C22: t | D22: 50.00 | E22: 0 | F22: =IF(C22 = CHAR(37), D22*E22/100,D22*E22) -> 0
A42: Total Carried Forward To Summary | F42: =SUM(F6:F41) -> 0
C43: - 14 -

Sheet C.11.6
A1: ='C1.5'!A1 -> New Mashifane Park: Installation of Civil Engineering Services: Roads and Stormwater Network
A3: ='C1.5'!A3 -> Contract No: Contract "A1"
F4: C11.6 ROAD SIGNS
A5: Item | B5: Description | C5: Unit | D5: Quantity | E5: Rate | F5: Amount (R)
A6: C11.6 | B6: ROAD SIGNS
A8: C11.6.1 | B8: Road signboards with painted or coloured semi-matt background.
B9: Symbols, lettering and borders in semi- matt black or in Class I
B10: retro-reflective 'material, where the sign board is constructed from:
A12: C11.6.1.1 | B12: Aluminium sheet (2,0 mm thick)
B14: (b) Area exceeding 0,5m² but not 2 m² | C14: No. | D14: 50.00 | E14: 0 | F14: =D14*E14 -> 0
A16: C11.6.1.3 | B16: Prepainted galvanized steel plate (chromadeck or
B17: approved equivalent)
B19: (b) Area exceeding 0,5m² but not 2 m² | C19: No. | D19: 50.00 | E19: 0 | F19: =D19*E19 -> 0
A21: C11.6.6 | B21: Dismantling, storing and re-erecting road signs with a surface area of:
A23: C11.6.6.3 | B23: Area exceeding 2 m² but not 10 m² | C23: No. | D23: 0 | E23: 0 | F23: Rate Only
A25: C11.6.6.4 | B25: Exceeding 10 m² | C25: No. | D25: 1.00 | E25: 0 | F25: Rate Only
A27: C11.6.8 | B27: Danger plates at culverts/structures
A29: C11.6.8.1 | B29: Size 150 x 600mm | C29: No. | D29: 40.00 | E29: 0 | F29: =D29*E29 -> 0
B48: CARRIED TO SUMMARY | F48: =SUM(F6:F47) -> 0
C49: - 15 -

Sheet C11.7
A1: ='C1.5'!A1 -> New Mashifane Park: Installation of Civil Engineering Services: Roads and Stormwater Network
A3: ='C1.5'!A3 -> Contract No: Contract "A1"
F4: C11.7 ROAD MARKINGS AND ROAD STUDS
A5: Item | B5: Description | C5: Unit | D5: Quantity | E5: Rate | F5: Amount (R)
A6: C11.7 | B6: ROAD MARKINGS AND ROAD STUDS
A8: C11.7.2 | B8: Retro-reflective road-marking paint
A10: C11.7.2.1 | B10: White lines (broken or unbroken):
B12: (i) 100 mm wide | C12: km | D12: 6.00 | E12: 0 | F12: =D12*E12 -> 0
B14: (ii) 150 mm wide | C14: km | E14: 0 | F14: Rate Only
B16: (iii) 200 mm wide | C16: km | E16: 0 | F16: Rate Only
A18: C11.7.2.2 | B18: Yellow lines (broken or unbroken):
B20: (i) 100 mm wide | C20: km | E20: 0 | F20: Rate Only
B22: (ii) 150 mm wide | C22: km | D22: 3.00 | E22: 0 | F22: =D22*E22 -> 0
A24: C11.7.2.4 | B24: White lettering and symbols | C24: m² | D24: 200.00 | E24: 0 | F24: =E24*D24 -> 0
A26: C11.7.2.5 | B26: Yellow lettering and symbols | C26: m² | D26: 25.00 | E26: 0 | F26: =D26*E26 -> 0
A28: C11.7.5 | B28: Variations in rate of application:
A30: C11.7.5.1 | B30: White paint | C30: litre | D30: 10.00 | E30: 0 | F30: =D30*E30 -> 0
A32: C11.7.5.2 | B32: Yellow paint | C32: litre | D32: 10.00 | E32: 0 | F32: =E32*D32 -> 0
A34: C11.7.7 | B34: Road studs
A36: C11.7.7.1 | B36: Permanent road studs compliant to SANS 1442 | C36: No | D36: 1,500.00 | E36: 0 | F36: Rate Only
B37: red, yellow and white
A39: C11.7.8 | B39: Setting out and premarking the lines | C39: km | D39: 6.00 | E39: 0 | F39: =E39*D39 -> 0
B40: (excluding traffic-island markings,
B41: lettering and symbols)
A43: C11.7.9 | B43: Re-establishing the painting unit during the defects notification | C43: Lump S | D43: 1.00 | E43: 0 | F43: =E43*D43 -> 0
B44: period and at other instances on instruction of the Engineer
A46: 57.08 | B46: Re-marking of road after liability period | C46: Lump S | D46: 1.00 | E46: 0 | F46: =D46*E46 -> 0
F52: =SUM(F6:F51) -> 0

Sheet C11.9
A1: ='C1.5'!A1 -> New Mashifane Park: Installation of Civil Engineering Services: Roads and Stormwater Network
A3: ='C1.5'!A3 -> Contract No: Contract "A1"
F4: C11.9 FINISHING THE ROAD AND RESERVE AND TREATING OLD ROADS
A5: Item | B5: Description | C5: Unit | D5: Quantity | E5: Rate | F5: Amount (R)
A7: 11.9 | B7: FINISHING THE ROAD AND ROAD RESERVE AND
B8: TREATING OLD ROADS
A10: C11.9.1 | B10: Finishing road and road reserve:
A12: C11.9.1.2 | B12: Single carriageway road | C12: km | D12: 5.20 | E12: 0 | F12: =D12*E12 -> 0
B48: CARRIED TO SUMMARY | F48: =SUM(F6:F47) -> 0

Sheet G.10
A1: ='C1.5'!A1 -> New Mashifane Park: Installation of Civil Engineering Services: Roads and Stormwater Network
A3: ='C1.5'!A3 -> Contract No: Contract "A1"
F4: G1000 GUIDELINES FOR SUBCONTRACTING AND LABOUR ENHANCEMENT
A5: Item | B5: Description | C5: Unit | D5: Quantity | E5: Rate | F5: Amount (R)
A6: G1000 | B6: GUIDELINES FOR SUBCONTRACTING AND LABOUR ENHANCEMENT
A8: G10.01 | B8: Project Liaison Committee costs | C8: Prov sum | D8: 1.00 | E8: R100,000.00 | F8: =E8*D8 -> R100,000.00
B10: (a) Handling cost and profit in respect of Item G10.01 above | C10: % | D10: =F8 -> 100,000.00 | E10: 0% | F10: =D10*E10 -> 0
A12: G10.02 | B12: Community Liaison Officer salary | C12: month | D12: 12.00 | E12: R60,000.00 | F12: =D12*E12 -> R720,000.00 | J12: =7000*18 -> 126000
B14: (a) Handling cost and profit in respect of Item G10.02 above | C14: % | D14: =F12 -> 720,000.00 | E14: 0% | F14: =D14*E14 -> 0
A16: G10.03 | B16: Training:
B18: (a) General training of potential ABE™s | C18: Prov sum | D18: 1.00 | E18: R150,000.00 | F18: =E18*D18 -> R150,000.00
B20: (b) Training of the temporary workforce:
B22: (i) Technical training | C22: Prov sum | D22: 1.00 | E22: R450,000.00 | F22: =D22*E22 -> R450,000.00
B24: (ii) HIV/ AIDS training | C24: Prov sum | D24: 1.00 | E24: R50,000.00 | F24: =D24*E24 -> R50,000.00
B26: (iii) OHS Training | C26: Prov sum | D26: 1.00 | E26: R50,000.00 | F26: =D26*E26 -> R50,000.00
B28: (c) Handling cost and profit in respect of Items G10.03 (a) (b) (i) (ii) (iii) | C28: % | D28: =SUM(F18:F26) -> 700,000.00 | E28: 0% | F28: =D28*E28 -> 0
A30: G10.05 | B30: Provision and maintenance of the ABE support office | C30: month | D30: 12.00 | E30: 0 | F30: =D30*E30 -> 0
A32: G10.06 | B32: Penalties
B34: (Refer to Part C3.7 : Guidelines for subcontracting and labour enhancement for the calculation of penalties)
B36: (a) Contract participation goals for subcontracting to Affirmable Business Enterprise (ABE) / Targeted Enterprise (CIDB 1CE PE - CIDB 5CE PE) 15% | C36: % | D36: 0 | E36: 0 | F36: =D36*E36 -> 0
B38: (b) Targeted Labour (8%) | C38: % | D38: 0 | E38: 0 | F38: =D38*E38 -> 0
A48: Total Carried Forward To Summary
C49: - 15 -
